Cogmind - Beta 15 @@@ ROGUE MODE // 2025.08.31 @ 21:34:32 Player: Petvaria Result: Destroyed by Combat Programmer with EMDS Performance ------------- Evolutions (4) 2000 Regions Visited (9) 1800 Robots Destroyed (77) 385 Value Destroyed (1960) 1960 Prototype IDs (216) 4320 Alien Tech Used (0) 0 Bonus (3840) 3840 TOTAL SCORE: 14305 Bonus ------- Follower Combat Kills 40 Met Data Miner 300 Used Data Conduit 3000 Pursued by Intercept 500 Cogmind --------- Core Integrity 0/850 Matter 126/300 Energy 93/100 System Corruption 4% Temperature Cool (0) Movement Core (50) Location -6/Factory Parts ------- > --- POWER (1) -------- (None) > --- PROPULSION (5) --- Nuclear Pulse Thruster > --- UTILITY (7) ------ Advanced Sensor Array Improved Signal Interpreter Advanced Signal Interpreter Hacking Suite Hacking Suite Hacking Suite > --- WEAPON (2) ------- Makeshift Spear > --- INVENTORY (5) ---- Light Fission Core Nuclear Pulse Thruster Nuclear Pulse Thruster Improved Light Armor Plating Peak State ------------ > --- POWER ------------ Light Angular Momentum Engine > --- PROPULSION ------- Nuclear Pulse Thruster Nuclear Pulse Thruster Nuclear Pulse Thruster Nuclear Pulse Thruster Nuclear Pulse Thruster > --- UTILITY ---------- Advanced Sensor Array Improved Signal Interpreter Advanced Signal Interpreter Hacking Suite Hacking Suite Hacking Suite > --- WEAPON ----------- Proton Missile Launcher Makeshift Spear > --- INVENTORY -------- Light Fission Core Nuclear Pulse Thruster Nuclear Pulse Thruster Improved Light Armor Plating [Rating: 61] Favorites ----------- Power Ion Engine Engine Ion Engine Power Core Light Nuclear Core Propulsion Light Treads Treads Light Treads Flight Unit Improved VTOL Module Utility Hacking Suite Device Improved Sensor Array Storage Medium Storage Unit Processor Improved Signal Interpreter Hackware Hacking Suite Protection Insulated Plating Weapon Heavy Assault Rifle Energy Gun Medium Laser Ballistic Gun Heavy Assault Rifle Ballistic Cannon Flak Cannon Launcher Proton Missile Launcher Impact Weapon Maul Slashing Weapon Chainsword Piercing Weapon Makeshift Spear Special Melee Weapon Datajack Build | -11 -10 -9 -8 -7 -7 -7 -7 -6 -6 ------- Run | Yrd Mat Mat Mat Fac Low Low Dat Pro Fac Slots Evolved 8 | . . 2 2 2 . . . . 2 Power . | . . . . . . . . . . Propulsion 3 | . . 1 1 . . . . . 1 Utility 5 | . . 1 1 2 . . . . 1 Weapon . | . . . . . . . . . . Parts Attached 93 | 6 2 15 33 7 1 . 1 2 26 Power 11 | 1 . 3 4 . . . . . 3 Engine 6 | 1 . 3 1 . . . . . 1 Core 5 | . . . 3 . . . . . 2 Reactor . | . . . . . . . . . . Propulsion 39 | 2 . 6 15 . 1 . 1 1 13 Treads 19 | 2 . 6 11 . . . . . . Leg . | . . . . . . . . . . Wheel . | . . . . . . . . . . Hover . | . . . . . . . . . . Flight 20 | . . . 4 . 1 . 1 1 13 Utility 27 | 1 2 4 8 4 . . . . 8 Device 4 | . . . . 1 . . . . 3 Storage 4 | 1 1 1 1 . . . . . . Processor 2 | . . . . 1 . . . . 1 Hackware 7 | . . . 1 2 . . . . 4 Protection 10 | . 1 3 6 . . . . . . Artifact . | . . . . . . . . . . Weapon 16 | 2 . 2 6 3 . . . 1 2 Energy Gun 1 | 1 . . . . . . . . . Energy Cannon . | . . . . . . . . . . Ballistic Gun 7 | 1 . 2 4 . . . . . . Ballistic Cannon 1 | . . . 1 . . . . . . Launcher 1 | . . . . . . . . . 1 Special Weapon . | . . . . . . . . . . Impact Weapon 1 | . . . 1 . . . . . . Slashing Weapon 3 | . . . . 2 . . . . 1 Piercing Weapon 1 | . . . . . . . . 1 . Special Melee Weapon 1 | . . . . 1 . . . . . Unidentified Prototypes 2 | . . 1 1 . . . . . . Parts Lost 37 | . . 1 4 . 1 2 7 1 21 Power 4 | . . . 1 . . 1 1 . 1 Propulsion 19 | . . . . . 1 . 3 1 14 Utility 10 | . . 1 3 . . . 2 . 4 Weapon 4 | . . . . . . 1 1 . 2 Highest Loss Streak 13 | . . 1 2 . 1 2 7 1 13 To Critical Strikes . | . . . . . . . . . . Average Backups 9 | 2 5 10 14 9 10 8 8 7 5 Power . | . 1 1 . 1 1 . . . . Propulsion 2 | 1 2 1 3 2 4 3 3 1 . Utility 3 | . . 3 4 3 4 4 4 4 2 Weapon 3 | . 1 4 5 2 1 1 1 1 1 Tool/Special . | . . . . . . . . . . Unused Backups 17 | . . 5 5 3 . . . . 4 Power 1 | . . . . . . . . . 1 Propulsion 7 | . . 2 2 1 . . . . 2 Utility 2 | . . 1 . . . . . . 1 Weapon 6 | . . 2 2 2 . . . . . Tool/Special 1 | . . . 1 . . . . . . Average Slot Usage (%) 89 | . 96 99 96 78 100 92 92 46 60 Engine 6 | . 14 11 2 7 7 5 . . . Core 2 | . . . 6 . . 1 7 . . Treads 23 | . 27 33 34 . . . . . . Flight 6 | . . . . 30 30 30 30 15 17 Storage 8 | . 14 11 9 7 7 7 7 7 1 Processor 2 | . . . . . 7 7 7 7 10 Hackware 8 | . . . 7 22 23 23 23 15 18 Protection 12 | . 10 21 17 . . . . . . Energy Gun 3 | . 14 7 . . . . . . . Ballistic Gun 10 | . 13 14 16 . . . . . . Slashing Weapon 1 | . . . . 1 7 7 7 . 3 Peak Build Rating 61 | 6 8 18 34 43 43 43 41 24 61 Average Rating 22 | 4 7 14 25 34 42 41 38 20 35 On Entrance 22 | . 6 8 18 28 43 43 41 20 20 Naked Turns . | . . . . . . . . . . Heaviest Build 41 | 14 20 41 41 20 20 20 19 10 19 Greatest Support 83 | 40 40 63 83 20 21 21 21 11 30 Greatest Overweight (x) 3 | . . . 1 . . . . . 3 Average Overweight (x) . | . . . . . . . . . . Largest Inventory Capacity 15 | 8 10 15 15 10 10 10 10 10 10 Average Capacity 11 | 6 9 10 14 10 10 10 10 10 6 Most Carried 15 | 5 10 14 15 10 10 9 8 8 7 Average Carried 10 | 2 5 10 14 9 9 8 7 7 5 Final Capacity 15 | 8 10 15 10 10 10 10 10 10 5 Final Carried 12 | 4 10 12 10 10 9 8 7 7 4 Class Distribution -------------------- 41% | Mutant 31% | Scavenger-Mutant 18% | Hacker-Sprinter 7% | Hacker-Mutant Dominant Class ---------------- Mutant | -10/Materials Mutant | -9/Materials Scavenger-Mutant | -8/Materials Hacker-Sprinter | -7/Factory Hacker-Sprinter | -7/Lower Caves Hacker-Sprinter | -7/Lower Caves Hacker-Sprinter | -7/Data Miner Hacker-Mutant | -6/Proximity Caves Hacker-Mutant | -6/Factory Resources | -11 -10 -9 -8 -7 -7 -7 -7 -6 -6 ----------- Run | Yrd Mat Mat Mat Fac Low Low Dat Pro Fac Matter Collected 2074 | 240 186 399 1109 17 73 10 . 13 27 Remotely . | . . . . . . . . . . Salvage Created 3255 | . 327 908 2003 17 . . . . . Parts 190 | . 22 61 102 5 . . . . . Haulers Intercepted 11 | . 2 4 5 . . . . . . Recyclers Shooed 6 | . 2 1 3 . . . . . . Parts Field Recycled . | . . . . . . . . . . Retrieved Matter . | . . . . . . . . . . Parts Self-Destructed . | . . . . . . . . . . Prevented . | . . . . . . . . . . Kills | -11 -10 -9 -8 -7 -7 -7 -7 -6 -6 ------- Run | Yrd Mat Mat Mat Fac Low Low Dat Pro Fac Combat Hostiles Destroyed 47 | . 9 11 27 . . . . . . Guns 47 | . 9 11 27 . . . . . . Classes Destroyed 10 | . 4 5 1 . . . . . . Worker 5 | . . 2 3 . . . . . . Builder 1 | . . . 1 . . . . . . Hauler 11 | . 2 4 5 . . . . . . Recycler 5 | . . 1 4 . . . . . . Operator 7 | . 2 2 1 2 . . . . . Watcher 1 | . . 1 . . . . . . . Swarmer 9 | . 6 . 3 . . . . . . Grunt 28 | . 3 7 18 . . . . . . Brawler 2 | . . 1 1 . . . . . . Sentry 8 | . . 3 5 . . . . . . Best Kill Streak 8 | . 3 5 8 1 . . . . . Combat Bots Only 5 | . 2 3 5 . . . . . . Max Kills in Single Turn 1 | . 1 1 1 1 . . . . . Gunslinging . | . . . . . . . . . . Exploded . | . . . . . . . . . . Melee . | . . . . . . . . . . Uniques/NPCs Destroyed . | . . . . . . . . . . Combat | -11 -10 -9 -8 -7 -7 -7 -7 -6 -6 -------- Run | Yrd Mat Mat Mat Fac Low Low Dat Pro Fac Hostile Shots Fired 508 | . 25 57 168 1 10 7 8 19 213 Missed 195 | . 8 12 52 1 4 2 2 7 107 Hits 313 | . 17 45 116 . 6 5 6 12 106 Melee 3 | . . . 3 . . . . . . Projectile 310 | . 17 45 113 . 6 5 6 12 106 Critical Strikes 7 | . . . 3 . . . . 1 3 Damage Taken 4892 | . 182 604 1721 . 140 85 276 84 1800 Core 1238 | . 57 10 185 . 28 . 76 . 882 Absorbed by Shields 47 | . . . . . . . . . 47 Redirected to Shielding 27 | . 13 14 . . . . . . . Core Remaining (%) 85 | 100 77 97 66 . . . . 85 . Volleys Fired 234 | . 37 64 133 . . . . . . Largest 2 | . 2 2 2 . . . . . . Hottest 70 | . 70 70 46 . . . . . . Shots Fired 455 | . 74 128 253 . . . . . . Gun 455 | . 74 128 253 . . . . . . Cannon . | . . . . . . . . . . Launcher . | . . . . . . . . . . Special . | . . . . . . . . . . Kinetic 378 | . 37 88 253 . . . . . . Thermal 77 | . 37 40 . . . . . . . Explosive . | . . . . . . . . . . Electromagnetic . | . . . . . . . . . . Robot Hit Streak 18 | . 10 9 18 . . . . . . Robot Miss Streak 4 | . 2 3 4 . . . . . . Penetration Max . | . . . . . . . . . . Secondary Targets 2 | . . 1 1 . . . . . . Max Gunslinging Chain 1 | . . 1 1 . . . . . . Shots Hit Robots 332 | . 51 91 183 2 . . 1 . 4 Core Hits 143 | . 21 40 79 2 . . . . 1 Critical Kills 1 | . . 1 . . . . . . . Critical Parts Destroyed . | . . . . . . . . . . Critical Strikes 10 | . 4 5 . . . . . . 1 Burn 8 | . 4 4 . . . . . . . Destroy 1 | . . 1 . . . . . . . Impale 1 | . . . . . . . . . 1 Melee Attacks 54 | . . . . 15 . . 3 . 36 Impact 13 | . . . . 13 . . . . . Slashing 22 | . . . . 2 . . 3 . 17 Piercing 19 | . . . . . . . . . 19 Sneak Attacks 2 | . . . . 1 . . 1 . . Combat Hostiles . | . . . . . . . . . . Follow-up Attacks . | . . . . . . . . . . Damage Inflicted 5157 | . 673 1209 2875 175 . . 94 . 131 Guns 4748 | . 664 1209 2875 . . . . . . Cannons . | . . . . . . . . . . Explosions . | . . . . . . . . . . Melee 400 | . . . . 175 . . 94 . 131 Ramming 9 | . 9 . . . . . . . . Kinetic 4020 | . 335 810 2875 . . . . . . Thermal 728 | . 329 399 . . . . . . . Explosive . | . . . . . . . . . . Electromagnetic . | . . . . . . . . . . Impact 40 | . . . . 40 . . . . . Slashing 229 | . . . . 135 . . 94 . . Piercing 131 | . . . . . . . . . 131 Highest Corruption 3 | . . . . 1 1 1 1 1 3 Average Corruption 1 | . . . . 1 1 1 1 1 1 Corruption Purged . | . . . . . . . . . . Corruption Blocked . | . . . . . . . . . . Effects 5 | . . . . 1 1 1 1 1 . Message Errors 1 | . . . . . . . 1 . . Matter Fused 1 | . . . . . . . . 1 . Heat Flow Errors 1 | . . . . . 1 . . . . Parts Rejected 1 | . . . . 1 . . . . . Data Loss (minor) 1 | . . . . . . 1 . . . Overload Shots . | . . . . . . . . . . Overflow Damage 9 | . . . . . . . . . 9 Projectiles . | . . . . . . . . . . Explosions . | . . . . . . . . . . Melee 9 | . . . . . . . . . 9 Knockbacks . | . . . . . . . . . . Impact . | . . . . . . . . . . Kinetic . | . . . . . . . . . . Secondary . | . . . . . . . . . . Self-Inflicted Damage . | . . . . . . . . . . Shots . | . . . . . . . . . . Rammed 1 | . 1 . . . . . . . . Targets Rammed 1 | . 1 . . . . . . . . Kicked . | . . . . . . . . . . Crushed . | . . . . . . . . . . Highest Temperature 133 | . 45 133 120 . 105 7 . . 2 Average Temperature 31 | . 15 41 29 . 47 7 . . 1 Received Heat Transfer 1248 | . 24 252 810 . 24 27 . . 111 Siege Activations . | . . . . . . . . . . Martial Activations . | . . . . . . . . . . Shielding Activations . | . . . . . . . . . . Robots Disrupted . | . . . . . . . . . . Combat Hostiles . | . . . . . . . . . . Robots Corrupted . | . . . . . . . . . . Combat Hostiles . | . . . . . . . . . . Parts Fried . | . . . . . . . . . . Impact Corruptions . | . . . . . . . . . . Robots Melted . | . . . . . . . . . . Combat Hostiles . | . . . . . . . . . . Parts Melted 5 | . 2 3 . . . . . . . Heat Transferred 2738 | . 1258 1480 . . . . . . . Parts Sabotaged . | . . . . . . . . . . Parts Stolen . | . . . . . . . . . . Parts Stripped . | . . . . . . . . . . Power Chain Reactions . | . . . . . . . . . . Alert | -11 -10 -9 -8 -7 -7 -7 -7 -6 -6 ------- Run | Yrd Mat Mat Mat Fac Low Low Dat Pro Fac Maximum Alert Level 1 | . . . 1 . . . . . . Low Security (%) 88 | 100 100 100 68 100 . . . . 100 Level 1 11 | . . . 31 . . . . . . Level 2 . | . . . . . . . . . . Level 3 . | . . . . . . . . . . Level 4 . | . . . . . . . . . . Level 5 . | . . . . . . . . . . High Security . | . . . . . . . . . . Max Security . | . . . . . . . . . . Peak Influence 341 | . 99 83 341 67 . . . . 121 Initial 66 | . . 17 17 66 . . . . 9 Average 82 | . 28 23 173 50 . . . . 46 Influence Increases 2280 | . 280 377 862 98 . 165 . 15 483 Destroy 0b10 Robot/C 960 | . 180 220 540 . . . . . 20 Destroy 0b10 Robot/NC 140 | . 15 50 70 5 . . . . . Destroy Leader 244 | . 34 70 130 . . . . . 10 Allied During Kill 5 | . . . . . . . . . 5 Successful Hack 64 | . 6 6 11 24 . . . . 17 Disable Machine 105 | . . . 75 15 . . . . 15 Destroy Structure 42 | . . 1 6 9 . . . . 26 Partial Spotted 60 | . . . . . . . . . 60 Lose Combat Pursuer 660 | . 45 30 30 45 . 165 . 15 330 Influence Decreases 2280 | . 237 377 758 211 34 80 85 . 498 Entered New Map 238 | . . 26 26 81 14 . 85 . 6 Time Decay 1564 | . 237 312 542 130 20 70 . . 253 Lost Part 190 | . . 10 40 . . 10 . . 130 Lost Ally 60 | . . . . . . . . . 60 Purge Threat 228 | . . 29 150 . . . . . 49 Squads Dispatched 14 | . 1 1 6 1 . . . . 5 Investigation 4 | . . . 2 1 . . . . 1 Extermination 2 | . . . . . . . . . 2 Reinforcement 3 | . 1 1 1 . . . . . . Assault . | . . . . . . . . . . Garrison 3 | . . . 3 . . . . . . Intercept 2 | . . . . . . . . . 2 Searches Triggered . | . . . . . . . . . . Construction Impeded . | . . . . . . . . . . Haulers Reinforced . | . . . . . . . . . . Active Scanning Responses . | . . . . . . . . . . Cargo Convoy Interrupts . | . . . . . . . . . . Stealth | -11 -10 -9 -8 -7 -7 -7 -7 -6 -6 --------- Run | Yrd Mat Mat Mat Fac Low Low Dat Pro Fac Distress Signals 11 | . 3 5 1 . . . . . 2 Communications Jammed . | . . . . . . . . . . Distress Signals . | . . . . . . . . . . Times Spotted 141 | . 19 26 36 9 1 10 4 3 33 Peak Tracking Total 8 | . 7 4 6 5 1 6 4 4 8 Tactical Retreats 22 | . 1 2 1 1 . 4 . 1 12 Traps | -11 -10 -9 -8 -7 -7 -7 -7 -6 -6 ------- Run | Yrd Mat Mat Mat Fac Low Low Dat Pro Fac Traps Triggered 10 | . 4 1 1 2 . . . . 2 Indirectly . | . . . . . . . . . . Trap Hack Attempts . | . . . . . . . . . . Triggered . | . . . . . . . . . . Disarmed . | . . . . . . . . . . Reprogrammed . | . . . . . . . . . . Reused . | . . . . . . . . . . Traps Extracted . | . . . . . . . . . . Installed . | . . . . . . . . . . Triggered . | . . . . . . . . . . Machines | -11 -10 -9 -8 -7 -7 -7 -7 -6 -6 ---------- Run | Yrd Mat Mat Mat Fac Low Low Dat Pro Fac Machines Disabled 7 | . . . 5 1 . . . . 1 Max in Single Turn 1 | . . . 1 1 . . . . 1 Garrison Access 3 | . . . . . . . . . 3 Machines Repaired . | . . . . . . . . . . Machines Dismantled . | . . . . . . . . . . Machines Sabotaged . | . . . . . . . . . . Overloaded Fab Kills . | . . . . . . . . . . Hacking | -11 -10 -9 -8 -7 -7 -7 -7 -6 -6 --------- Run | Yrd Mat Mat Mat Fac Low Low Dat Pro Fac Machines Accessed 30 | . 2 3 5 5 . 1 4 . 10 Terminals 12 | . 2 3 2 4 . . . . 1 Fabricators 6 | . . . . 1 . . . . 5 Repair Stations . | . . . . . . . . . . Recycling Units 2 | . . . 2 . . . . . . Scanalyzers . | . . . . . . . . . . Garrison Access 5 | . . . 1 . . . . . 4 Total Hacks 85 | . 3 8 12 11 . 1 30 . 20 Successful 62 | . 2 3 5 7 . 1 30 . 14 Failed 23 | . 1 5 7 4 . . . . 6 Catastrophic 3 | . . . 3 . . . . . . Database Lockouts . | . . . . . . . . . . Manual 36 | . 3 6 5 10 . . . . 12 Terminals 28 | . 3 8 5 8 . . . . 4 Fabricators 15 | . . . . 3 . . . . 12 Repair Stations . | . . . . . . . . . . Recycling Units 5 | . . . 5 . . . . . . Scanalyzers . | . . . . . . . . . . Garrison Access 6 | . . . 2 . . . . . 4 Terminal Hacks 38 | . . 1 1 3 . 1 30 . 2 Record 7 | . . . . . . . 7 . . Part Schematic 13 | . . . . . . . 13 . . Robot Schematic 7 | . . . . . . . 7 . . Prototype ID Bank 3 | . . . . . . . 3 . . Open Door 1 | . . . . . . 1 . . . Branch Access Points 1 | . . . . 1 . . . . . Terminal Index 1 | . . . . 1 . . . . . Unreport Threat 4 | . . 1 1 . . . . . 2 Registered Components 1 | . . . . 1 . . . . . Fabricator Hacks 5 | . . . . 1 . . . . 4 Network Status 1 | . . . . . . . . . 1 Build 4 | . . . . 1 . . . . 3 Repair Station Hacks . | . . . . . . . . . . Recycling Unit Hacks 2 | . . . 2 . . . . . . Retrieve Components 2 | . . . 2 . . . . . . Scanalyzer . | . . . . . . . . . . Garrison Access Hacks 3 | . . . . . . . . . 3 Seal Access 3 | . . . . . . . . . 3 Unauthorized Hacks 14 | . 2 2 2 3 . . . . 5 Terminals 8 | . 2 2 2 2 . . . . . Assimilate 4 | . 1 1 . 2 . . . . . Operators 4 | . 1 1 2 . . . . . . Fabricators 6 | . . . . 1 . . . . 5 Fabnet 6 | . . . . 1 . . . . 5 Repair Stations . | . . . . . . . . . . Recycling Units . | . . . . . . . . . . Scanalyzers . | . . . . . . . . . . Garrison Access . | . . . . . . . . . . Data Cores Recovered 2 | . . 1 . 1 . . . . . Used 1 | . . 1 . . . . . . . Hacking Detections 18 | . 1 3 3 5 . . . . 6 Full Trace Events 1 | . . . 1 . . . . . . Feedback Events . | . . . . . . . . . . Feedback Blocked . | . . . . . . . . . . Robot Schematics Acquired 7 | . . . . . . . 7 . . Robots Built 6 | . . . . . . . . . 6 Authchips . | . . . . . . . . . . Time 309 | . . . . . . . . . 309 Total Robot Build Rating 22 | . . . . . . . . . 22 Part Schematics Acquired 13 | . . . . . . . 13 . . Parts Built 2 | . . . . 2 . . . . . Authchips . | . . . . . . . . . . Time 47 | . . . . 47 . . . . . Total Part Build Rating 10 | . . . . 10 . . . . . Parts Repaired . | . . . . . . . . . . Time . | . . . . . . . . . . Parts Recycled . | . . . . . . . . . . Recycled Matter . | . . . . . . . . . . Retrieved Matter . | . . . . . . . . . . Retrieved Components 11 | . . . 11 . . . . . . Parts Scanalyzed . | . . . . . . . . . . Part Schematics Acquired . | . . . . . . . . . . Parts Damaged . | . . . . . . . . . . Bothacking | -11 -10 -9 -8 -7 -7 -7 -7 -6 -6 ------------ Run | Yrd Mat Mat Mat Fac Low Low Dat Pro Fac Used RIF Installer . | . . . . . . . . . . Robots Hacked . | . . . . . . . . . . Non-combat . | . . . . . . . . . . Combat . | . . . . . . . . . . Robot Hacks Applied . | . . . . . . . . . . Relay Couplers Released . | . . . . . . . . . . Fabnet Peak Effective % 3 | . . . . . . . . 3 3 Robots Rewired . | . . . . . . . . . . Allies Hacked . | . . . . . . . . . . Hacks Repelled . | . . . . . . . . . . Allies | -11 -10 -9 -8 -7 -7 -7 -7 -6 -6 -------- Run | Yrd Mat Mat Mat Fac Low Low Dat Pro Fac Total Allies 8 | . 1 . . 1 . . . . 6 Largest Group 3 | . 1 . . 1 . . . . 3 Highest-Rated Group 82 | . 10 . . 10 . . . . 82 Highest-Rated Ally 41 | . 10 . . 10 . . . . 41 Total Orders . | . . . . . . . . . . Ally Attacks 18 | . . . . . . . . . 18 Total Damage 321 | . . . . . . . . . 321 Kills 1 | . . . . . . . . . 1 Allies Corrupted . | . . . . . . . . . . Allies Melted . | . . . . . . . . . . Intel | -11 -10 -9 -8 -7 -7 -7 -7 -6 -6 ------- Run | Yrd Mat Mat Mat Fac Low Low Dat Pro Fac Active Infowar (turns) 532 | . . . . 16 183 174 41 . 118 Sensors 532 | . . . . 16 183 174 41 . 118 Robot Analysis Total 151 | . . . . . . . 151 . . Derelict Logs Recovered 4 | . . . . . 2 . . 2 . Drone Launches . | . . . . . . . . . . Drone Recoveries . | . . . . . . . . . . Exploration | -11 -10 -9 -8 -7 -7 -7 -7 -6 -6 ------------- Run | Yrd Mat Mat Mat Fac Low Low Dat Pro Fac Turns Passed 5179 | 88 758 1211 1674 264 183 174 45 137 645 Spaces Moved 5383 | 57 367 560 715 750 697 458 105 359 1315 Core 53 | 16 . . . . . . . . 37 Treads 1616 | 41 367 560 648 . . . . . . Legs . | . . . . . . . . . . Wheels . | . . . . . . . . . . Hover . | . . . . . . . . . . Flight 3714 | . . . 67 750 697 458 105 359 1278 Fastest Speed 26 | 50 160 160 26 26 26 27 27 32 28 Average Speed 69 | 129 160 160 152 26 26 27 27 33 34 Slowest Speed 280 | 160 160 160 170 26 27 27 32 34 280 Overloaded Moves . | . . . . . . . . . . Propulsion Burnouts . | . . . . . . . . . . Robots Hopped 28 | . . . 1 8 . . 2 2 15 Potential Cave-ins . | . . . . . . . . . . Cave-ins Triggered . | . . . . . . . . . . Exploration Rate (%) 50 | 5 74 52 39 25 71 66 77 53 44 Regions Visited 9 Branch Regions 4 Pre-discovered Areas 31 | . . . . . . . 31 . . Known Exits Taken 5 | . . . . 1 1 1 1 1 . Unknown Exits Taken 4 | 1 1 1 1 . . . . . . Scrap Searched 4 | . . . . . 2 1 . 1 . Spaces Dug 37 | . . . . 9 . . 1 . 27 Terrain Destroyed 37 | . . . . 9 . . 1 . 27 Melee 37 | . . . . 9 . . 1 . 27 Projectile . | . . . . . . . . . . AOE . | . . . . . . . . . . Terrain Rammed . | . . . . . . . . . . Walls Destroyed . | . . . . . . . . . . Machines Disabled . | . . . . . . . . . . Actions | -11 -10 -9 -8 -7 -7 -7 -7 -6 -6 --------- Run | Yrd Mat Mat Mat Fac Low Low Dat Pro Fac Total 6256 | 72 463 753 1054 781 697 507 113 374 1442 Wait 372 | . 40 87 119 1 . 49 7 14 55 Move 5320 | 56 366 559 712 734 696 457 100 355 1285 Hop 26 | . . . 1 7 . . 2 1 15 Pick Up 68 | 10 12 11 19 7 . . . 1 8 Fast Attach 29 | . . 3 3 7 . . . . 16 Attach 47 | 6 5 2 14 2 1 1 1 2 13 Detach 4 | . . . 1 . . . . 1 2 Swap 30 | . 1 10 19 . . . . . . Drop 63 | . 1 17 33 8 . . . . 4 Fire 234 | . 37 64 133 . . . . . . Melee 54 | . . . . 15 . . 3 . 36 Ram . | . . . . . . . . . . Kick . | . . . . . . . . . . Crush 1 | . 1 . . . . . . . . Escape Stasis 8 | . . . . . . . . . 8 Rewire . | . . . . . . . . . . Trap . | . . . . . . . . . . Miscellaneous . | . . . . . . . . . . Route ------- -11/Scrapyard -10/Materials (discovered 4 exits: *Mat x2 / [*Min] / [*Sub]) -9/Materials (discovered 3 exits: *Mat / [*Min] / [*Sto]) -8/Materials -7/Factory (discovered 3 exits: *Fac / *Low x2) -7/Lower Caves -7/Lower Caves (discovered 2 exits: Fac / *Dat) -7/Data Miner -6/Proximity Caves -6/Factory (discovered 1 exit: *Low) History --------- Turn | Location | Event 8 | -11/Scrapyard | Discovered new exit (range 14) 89 | -11/Scrapyard | Entered Materials 213 | -10/Materials | Discovered new exit (range 11) 237 | -10/Materials | Discovered new exit (range 16) 310 | -10/Materials | Build established: Mutant 451 | -10/Materials | Discovered new exit (range 9) 823 | -10/Materials | Discovered new exit (range 15) 847 | -10/Materials | Entered another Materials area 847 | -9/Materials | Evolved 2 slots: Propulsion x1, Utility x1 1058 | -9/Materials | Discovered new exit (range 15) 1526 | -9/Materials | Discovered new exit (range 4) 2024 | -9/Materials | Discovered new exit (range 16) 2058 | -9/Materials | Entered another Materials area 2058 | -8/Materials | Evolved 2 slots: Propulsion x1, Utility x1 2242 | -8/Materials | Garrison activated, responded to threat 2357 | -8/Materials | Build established: Scavenger-Mutant 2728 | -8/Materials | Discovered new exit (range 15) 3732 | -8/Materials | Entered Factory 3732 | -7/Factory | Evolved 2 slots: Utility x2 3736 | -7/Factory | Discovered new exit (range 14) 3833 | -7/Factory | Allied Derelicts emerged from ambush trap array 3838 | -7/Factory | Discovered new exit (range 11) 3905 | -7/Factory | Identified exit to Lower Caves 3945 | -7/Factory | Fabricated Nuclear Pulse Thruster? 3996 | -7/Factory | Entered Lower Caves 4010 | -7/Lower Caves | Learned Factory stockpile data 4022 | -7/Lower Caves | Build established: Hacker-Sprinter 4096 | -7/Lower Caves | Encountered a Warlord checkpoint 4166 | -7/Lower Caves | Spotted B-75 Beast 4168 | -7/Lower Caves | Identified exit to Lower Caves 4179 | -7/Lower Caves | Entered another Lower Caves area 4179 | -7/Lower Caves | Discovered new exit (range 13) 4259 | -7/Lower Caves | Encountered a Warlord checkpoint 4345 | -7/Lower Caves | Discovered new exit (range 9) 4347 | -7/Lower Caves | Identified exit to Data Miner 4353 | -7/Lower Caves | Entered Data Miner 4353 | -7/Data Miner | Discovered new exit (range 6) 4359 | -7/Data Miner | Met Data Miner 4367 | -7/Data Miner | Learned location of Section 7 (-2) 4367 | -7/Data Miner | Acquired the access code to Warlord's prototype stash 4369 | -7/Data Miner | Received God Mode back door access code from Data Miner 4374 | -7/Data Miner | Interfaced with the Data Conduit 4397 | -7/Data Miner | Identified exit to Proximity Caves 4398 | -7/Data Miner | Entered Proximity Caves 4427 | -6/Proximity Caves | Lost 7 parts (1p3n2u1w) 4430 | -6/Proximity Caves | Spotted B-75 Beast 4434 | -6/Proximity Caves | Learned location of 1 exit from Lower Caves 4513 | -6/Proximity Caves | Learned Factory interactive machine intel 4532 | -6/Proximity Caves | Discovered new exit (range 8) 4535 | -6/Proximity Caves | Identified exit to Factory 4535 | -6/Proximity Caves | Entered Factory 4535 | -6/Factory | Evolved 2 slots: Propulsion x1, Utility x1 4537 | -6/Factory | Loaded intel: 298 machine locations 4538 | -6/Factory | Loaded intel: 54 interactive machine locations 4634 | -6/Factory | Discovered new exit (range 15) 4638 | -6/Factory | Identified exit to Lower Caves 4750 | -6/Factory | Fabricated T-07 Excavator? 4910 | -6/Factory | Spotted B-75 Beast 4939 | -6/Factory | Core integrity fell below 50% 4976 | -6/Factory | Lost 13 parts (1p8n4u) 5126 | -6/Factory | Fabricated H-66 Slayer? 5143 | -6/Factory | Intercept squad dispatched 5146 | -6/Factory | Spotted Tracker 5153 | -6/Factory | Spotted Combat Programmer 5165 | -6/Factory | Fabricated E-15 Imp? 5173 | -6/Factory | Core integrity fell below 20% 5180 | -6/Factory | Destroyed by Combat Programmer with EMDS Last Messages --------------- Slug penetrates Tracker. Slayer 5b destroyed. Nuclear Pulse Thruster temporarily disabled. Penetrated by EMDS Slug. Proton Missile Launcher destroyed. Dropped Lgt. Angular Momentum Engine. EMDS Slug penetrates Wall. >> FABRICATOR: Completed E-15 Imp? Nuclear Pulse Thruster destroyed. Penetrated by EMDS Slug. Nuclear Pulse Thruster destroyed. Penetrated by EMDS Slug. EMDS Slug penetrates Tracker. Tracker suffers critical hit (Impale). Penetrated by EMDS Slug. Nuclear Pulse Thruster destroyed. Combat Programmer resets Tracker, system corruption cleaned. Destroyed Prototype Energy Gun. Penetrated by EMDS Slug. Map ----- +----------------------------------------------------+ | ?????????????????????????????????# ?# ]!! #? | | ???????????????"????????????????? " ?# ]!! #? | | ????????"""??????????????????????? ?#! ]!! [#? | | ????????"""???????????????????????? ?# #? | | ????????"""????????????????????????# #?# """ #? | | ???????????????????????????????????# ### """"" #? | | ????"""T"""????????????????????????# + """"" #? | | ???????????????????????????????????# ### #? | | ???????????????????????????????????# #?#####+##### | | ?????"""""????????????? ???????????# ###### | | ?????"""""???!???"""?# ???"""""???# % [ | | ?????"""?????????"""?# ??"""""??## = | | ?????????????????"""?# ??"""????+ """ ##+# | | ?????????????????????# ?????????#### "F" # | | ?????????????????"""?# ??"""""?????# " # | | """"""???????????"""?# ??"""""?????# """ # | | """"""???????????"""?+ ??"""???????# """ # | | """"""???????????????# ????????????# ## | | """"""??????????????##t ####+######## * ## | | ???????????? ???????# ## ## | | ??????????? ###### ## ## [ | | ??????????? ## ### ## | | ??????????? * ## ###########?# ## | | ??????????""""" [! ## ## #???# ## | | ??????????""""" [! # # ##### ## | | ??????????""" [ @# [ # """ + T# | | ?????????? Rsp / """ ##### # | | ?????????? w### # """ ]#???# ##### | | ???????????###### ??# # #??## ##??? | | ????????????????# ???#######+######### #??? | | ?""?????????????# #?????????# #??? | | ?"""????????????# ########### ####### !#??? | | ??S"????????????# #?????#####??? | | ????????????"?? #????????????? | | ??????????????##### ? " " " " " +????????????? | | ??????????????????# ??" " " " " #????????????? | | ??????????????????#???"?" " " " #????????????? | | ??????????????????????"?" " " " ####????????????? | | ??????????????????????"?" " " " #???????????????? | | ??????????????????????"?" " " " #???????????????? | | ????????"""?"""???????"?" " " " ########????????? | | ????????"""?"""?????? " " " " " # #????????? | | ????????"""?"""????# " " " " " # """ #????????? | | ???????????????????# # """ #????????? | | ????????"""?"""???+ + """ #????????? | | ????????"""?"""?????######+##### # #????????? | | ????????"""?"""????????????????# # #????????? | | ???????????????????????"""???###+########????????? | | ???????????????????????"""???# #??????? | | ???????????????????????"""???# """ """ #??????? | +----------------------------------------------------+ Best States ------------- Heat Dissipation 37 Energy Generation 18 Energy Capacity 310 Matter Stores 300 Matter Capacity 300 Sight Range 16 Robot Scan Range 16 Terrain Scan Density 10 Armor Coverage 375 Resistance: EM 15 Weapon Shielding 33 Evasion (%) 64 Recoil Reduction 4 Offensive Hacking 40 Item Schematics ----------------- Combat Drone Bay | -7/Data Miner | Free Lgt. Regenerative Plating | -7/Data Miner | Free Cld. Cesium-ion Thruster | -7/Data Miner | Free Gravity Neutralizer | -7/Data Miner | Free Force Rifle | -7/Data Miner | Free Remote Force Field | -7/Data Miner | Free Gyrokinetic Inverter | -7/Data Miner | Free Imp. Remote Datajack | -7/Data Miner | Free Adv. Sensor Array | -7/Data Miner | Free Mic. Fission Core | -7/Data Miner | Free Imp. Point Defense System | -7/Data Miner | Free Mni. Drone Bay | -7/Data Miner | Free Myomer Leg | -7/Data Miner | Free Robot Schematics ------------------ M-22 Extractor | -7/Data Miner | Free G-47 Trooper | -7/Data Miner | Free B-48 Gladiator | -7/Data Miner | Free W-25 Informer | -7/Data Miner | Free A-15 Conveyor | -7/Data Miner | Free S-27 Virus | -7/Data Miner | Free G-50 Soldier | -7/Data Miner | Free Fabricated ------------ Nuclear Pulse Thruster | x2 | -7/Factory | Preloaded T-07 Excavator | x2 | -6/Factory | Preloaded H-66 Slayer | x2 | -6/Factory | Preloaded E-15 Imp | x2 | -6/Factory | Preloaded Repaired ---------- Nothing Alien Tech Used ----------------- None Achievements -------------- None Challenges ------------ None Game ------ Seed DecoderSiegeProjector Manual? 0 Play Time 01:03:53 Cumulative 164.9 hours Start 2025.08.31 @ 20:28:20 End 2025.08.31 @ 21:34:32 Sessions 1 Manual Loads 0 Difficulty Rogue Special Mode None Game No. 145 Rogue 145 Adventurer 0 Explorer 0 Win Type - Total 8 Types 2/0/2/2/1/0/0/0/0/1 Lore% 85 Gallery% 80 Achievement% 61 Wizard Run 0 Options --------- Layout 1 ASCII 0 Keyboard 0 Movement Numpad Keybinds 0 Fullscreen 1 Font 24/Proggy Map View 50x35 Zoom Use 0% Tactical HUD 0 Map Filters NONE Filters NONE Steam 1 RUN: 43f8b945-df44-45aa-8edf-b0958a8cba2d